fUSD/lending_fUSD_20260516
["ID","MTS","AMOUNT","RATE_DAILY","PERIOD"]
[422427859,1778938232000,-271.30505842,0.00014377,2]
[422427851,1778938232000,-150.0,0.00014295,2]
[422427873,1778938232000,-1146.19567818,0.00014377,2]
[422427848,1778938232000,-131291.25172512,0.00014273,2]
[422427837,1778938232000,-166.66,0.00014247,2]
[422427857,1778938232000,-1594.63,0.00014345,2]
[422427840,1778938232000,-1291.79536216,0.00014258,2]
[422427839,1778938232000,-1924.1,0.00014247,2]
[422427842,1778938232000,-500.0,0.00014273,2]
[422427844,1778938232000,-500.0,0.00014273,2]
[422427845,1778938232000,-129216.51352828,0.00014273,2]
[422427843,1778938232000,-507.39599137,0.00014273,2]
[422427841,1778938232000,-5079.81744358,0.00014258,2]
[422427847,1778938232000,-104686.40983062,0.00014273,2]
[422427856,1778938232000,-5079.81744358,0.00014338,2]
[422427852,1778938232000,-500.0,0.00014329,2]
[422427854,1778938232000,-24495.87741852,0.0001433,2]
[422427855,1778938232000,-1291.79536216,0.00014338,2]
[422427849,1778938232000,-5000.0,0.00014278,2]
[422427846,1778938232000,-57079.41271598,0.00014273,2]
[422427853,1778938232000,-500.0,0.00014329,2]
[422427894,1778938233000,-1146.19567818,0.00014377,2]
[422427895,1778938233000,-1146.19567818,0.00014377,2]
[422427896,1778938233000,-1146.19567818,0.00014377,2]
[422427898,1778938233000,-1146.19567818,0.00014377,2]
[422427897,1778938233000,-1146.19567818,0.00014377,2]
[422427899,1778938233000,-1146.19567818,0.00014377,2]
[422427905,1778938233000,-1146.19567818,0.00014377,2]
[422427900,1778938233000,-1146.19567818,0.00014377,2]
[422427902,1778938233000,-1146.19567818,0.00014377,2]
[422427903,1778938233000,-1146.19567818,0.00014377,2]
[422427904,1778938233000,-1146.19567818,0.00014377,2]
[422427906,1778938233000,-1146.19567818,0.00014377,2]
[422427893,1778938233000,-1146.19567818,0.00014377,2]
[422427907,1778938233000,-1146.19567818,0.00014377,2]
[422427901,1778938233000,-1146.19567818,0.00014377,2]
[422427891,1778938233000,-1146.19567818,0.00014377,2]
[422427885,1778938233000,-1146.19567818,0.00014377,2]
[422427888,1778938233000,-1146.19567818,0.00014377,2]
[422427909,1778938233000,-1146.19567818,0.00014377,2]
[422427877,1778938233000,-1146.19567818,0.00014377,2]
[422427878,1778938233000,-1146.19567818,0.00014377,2]
[422427881,1778938233000,-1146.19567818,0.00014377,2]
[422427876,1778938233000,-1146.19567818,0.00014377,2]
[422427880,1778938233000,-1146.19567818,0.00014377,2]
[422427892,1778938233000,-1146.19567818,0.00014377,2]
[422427879,1778938233000,-1146.19567818,0.00014377,2]
[422427883,1778938233000,-1146.19567818,0.00014377,2]
[422427886,1778938233000,-1146.19567818,0.00014377,2]
[422427884,1778938233000,-1146.19567818,0.00014377,2]
[422427887,1778938233000,-1146.19567818,0.00014377,2]
[422427890,1778938233000,-1146.19567818,0.00014377,2]
[422427889,1778938233000,-1146.19567818,0.00014377,2]
[422427882,1778938233000,-1146.19567818,0.00014377,2]
[422427908,1778938233000,-1146.19567818,0.00014377,2]
[422427939,1778938233000,-603.65529988,0.00014377,2]
[422427916,1778938233000,-1146.19567818,0.00014377,2]
[422427932,1778938233000,-339.91053305,0.00014377,2]
[422427931,1778938233000,-471.84604647,0.00014377,2]
[422427935,1778938233000,-1134.7337214,0.00014377,2]
[422427934,1778938233000,-1134.7337214,0.00014377,2]
[422427933,1778938233000,-1134.7337214,0.00014377,2]
[422427937,1778938233000,-1134.7337214,0.00014377,2]
[422427930,1778938233000,-322.97714188,0.00014377,2]
[422427938,1778938233000,-531.07842152,0.00014377,2]
[422427941,1778938233000,-354.00232647,0.00014377,2]
[422427942,1778938233000,-272.12352312,0.00014377,2]
[422427944,1778938233000,-1.31530814,0.00014377,2]
[422427943,1778938233000,-392.33816786,0.00014377,2]
[422427945,1778938233000,-900.0,0.00014377,2]
[422427911,1778938233000,-1146.19567818,0.00014377,2]
[422427936,1778938233000,-1134.7337214,0.00014377,2]
[422427929,1778938233000,-1146.19567818,0.00014377,2]
[422427940,1778938233000,-116.26970395,0.00014377,2]
[422427925,1778938233000,-507.14608965,0.00014377,2]
[422427927,1778938233000,-615.36849824,0.00014377,2]
[422427914,1778938233000,-1146.19567818,0.00014377,2]
[422427915,1778938233000,-1146.19567818,0.00014377,2]
[422427913,1778938233000,-1146.19567818,0.00014377,2]
[422427910,1778938233000,-1146.19567818,0.00014377,2]
[422427917,1778938233000,-1146.19567818,0.00014377,2]
[422427918,1778938233000,-1146.19567818,0.00014377,2]
[422427912,1778938233000,-1146.19567818,0.00014377,2]
[422427920,1778938233000,-1146.19567818,0.00014377,2]
[422427921,1778938233000,-1146.19567818,0.00014377,2]
[422427922,1778938233000,-1146.19567818,0.00014377,2]
[422427923,1778938233000,-1146.19567818,0.00014377,2]
[422427924,1778938233000,-1146.19567818,0.00014377,2]
[422427919,1778938233000,-1146.19567818,0.00014377,2]
[422427928,1778938233000,-530.82717994,0.00014377,2]
[422427926,1778938233000,-639.04958853,0.00014377,2]
[422427967,1778938238000,-1134.7337214,0.00014377,2]
[422427968,1778938238000,-1134.7337214,0.00014377,2]
[422427971,1778938238000,-1134.7337214,0.00014377,2]
[422427970,1778938238000,-1134.7337214,0.00014377,2]
[422427969,1778938238000,-1134.7337214,0.00014377,2]
[422427974,1778938238000,-1134.7337214,0.00014377,2]
[422427965,1778938238000,-1134.7337214,0.00014377,2]
[422427973,1778938238000,-1134.7337214,0.00014377,2]
[422427972,1778938238000,-1134.7337214,0.00014377,2]
[422427966,1778938238000,-1134.7337214,0.00014377,2]
[422427954,1778938238000,-256.97785606,0.00014377,2]
[422427961,1778938238000,-1134.7337214,0.00014377,2]
[422427963,1778938238000,-1134.7337214,0.00014377,2]
[422427958,1778938238000,-1134.7337214,0.00014377,2]
[422427959,1778938238000,-1134.7337214,0.00014377,2]
[422427964,1778938238000,-1134.7337214,0.00014377,2]
[422427956,1778938238000,-1134.7337214,0.00014377,2]
[422427960,1778938238000,-1134.7337214,0.00014377,2]
[422427953,1778938238000,-877.75586534,0.00014377,2]
[422427952,1778938238000,-1134.7337214,0.00014377,2]
[422427951,1778938238000,-233.41841326,0.00014377,2]
[422427976,1778938238000,-500.0,0.00014377,2]
[422427962,1778938238000,-1134.7337214,0.00014377,2]
[422427978,1778938238000,-500.0,0.00014377,2]
[422427975,1778938238000,-1134.73372134,0.00014377,2]
[422427979,1778938238000,-500.0,0.00014377,2]
[422427977,1778938238000,-500.0,0.00014377,2]
[422428005,1778938238000,-576.15419916,0.00014378,2]
[422427997,1778938238000,-500.0,0.00014377,2]
[422427998,1778938238000,-500.0,0.00014377,2]
[422428000,1778938238000,-56519.00868897,0.00014378,2]
[422427999,1778938238000,-500.0,0.00014377,2]
[422428001,1778938238000,-389.64387423,0.00014378,2]
[422427996,1778938238000,-500.0,0.00014377,2]
[422427992,1778938238000,-500.0,0.00014377,2]
[422427993,1778938238000,-639.98009813,0.00014377,2]
[422427995,1778938238000,-500.0,0.00014377,2]
[422427994,1778938238000,-500.0,0.00014377,2]
[422428003,1778938238000,-11125.88655349,0.00014378,2]
[422427990,1778938238000,-500.0,0.00014377,2]
[422427991,1778938238000,-500.0,0.00014377,2]
[422427982,1778938238000,-500.0,0.00014377,2]
[422427987,1778938238000,-500.0,0.00014377,2]
[422427985,1778938238000,-500.0,0.00014377,2]
[422427981,1778938238000,-500.0,0.00014377,2]
[422427984,1778938238000,-500.0,0.00014377,2]
[422427988,1778938238000,-500.0,0.00014377,2]
[422427983,1778938238000,-500.0,0.00014377,2]
[422427989,1778938238000,-500.0,0.00014377,2]
[422427986,1778938238000,-500.0,0.00014377,2]
[422427980,1778938238000,-500.0,0.00014377,2]
[422428043,1778938240000,161.67949791,0.00030137,120]
[422428087,1778938242000,-2008.45337415,0.00014695,2]
[422428086,1778938242000,-150.0,0.00014687,2]
[422428069,1778938242000,-150.0,0.00014525,2]
[422428064,1778938242000,-2000.0,0.0001449,2]
[422428072,1778938242000,-150.0,0.00014583,2]
[422428070,1778938242000,-1291.79536216,0.00014579,2]
[422428073,1778938242000,-4425.06430117,0.0001459,2]
[422428074,1778938242000,-484.51991261,0.00014592,2]
[422428076,1778938242000,-150.0,0.0001464,2]
[422428080,1778938242000,-2312.0,0.0001468,2]
[422428075,1778938242000,-200.0,0.00014618,2]
[422428078,1778938242000,-5079.81744358,0.00014659,2]
[422428077,1778938242000,-1291.79536216,0.00014659,2]
[422428081,1778938242000,-2312.0,0.0001468,2]
[422428083,1778938242000,-2312.0,0.0001468,2]
[422428082,1778938242000,-1619.0,0.0001468,2]
[422428084,1778938242000,-150.0,0.00014687,2]
[422428085,1778938242000,-150.0,0.00014687,2]
[422428071,1778938242000,-5079.81744358,0.00014579,2]
[422428079,1778938242000,-654.0,0.0001468,2]
[422428068,1778938242000,-201.9544886,0.00014512,2]
[422428055,1778938242000,-1291.79536216,0.00014419,2]
[422428066,1778938242000,-1291.79536216,0.00014499,2]
[422428045,1778938242000,-1431389.30668415,0.00014378,2]
[422428047,1778938242000,-150.0,0.00014387,2]
[422428046,1778938242000,-166.66,0.00014384,2]
[422428048,1778938242000,-150.0,0.00014387,2]
[422428049,1778938242000,-150.0,0.00014387,2]
[422428051,1778938242000,-3466.3581416,0.00014404,2]
[422428050,1778938242000,-167.06305135,0.00014396,2]
[422428052,1778938242000,-1664.5521766,0.00014404,2]
[422428053,1778938242000,-177.57196693,0.00014407,2]
[422428054,1778938242000,-150.0,0.0001441,2]
[422428056,1778938242000,-5079.81744358,0.00014419,2]
[422428057,1778938242000,-420.0,0.00014466,2]
[422428059,1778938242000,-200.0,0.00014473,2]
[422428060,1778938242000,-500.0,0.00014477,2]
[422428061,1778938242000,-500.0,0.00014477,2]
[422428058,1778938242000,-150.0,0.00014468,2]
[422428062,1778938242000,-500.0,0.00014477,2]
[422428063,1778938242000,-150.0,0.00014487,2]
[422428065,1778938242000,-33179.6252,0.0001449,2]
[422428067,1778938242000,-5079.81744358,0.00014499,2]
[422428088,1778938242000,-150.0,0.00014698,2]
[422428110,1778938242000,-197.91555615,0.000149,2]
[422428090,1778938242000,-160.0,0.000147,2]
[422428112,1778938242000,-5079.81744358,0.000149,2]
[422428117,1778938242000,-299.44019908,0.000149,2]
[422428116,1778938242000,-2321.94060356,0.000149,2]
[422428114,1778938242000,-484.51991261,0.000149,2]
[422428118,1778938242000,-383.70286841,0.000149,2]
[422428121,1778938242000,-150.0,0.00014929,2]
[422428119,1778938242000,-200.0,0.00014912,2]
[422428124,1778938242000,-150.00000001,0.00014986,2]
[422428125,1778938242000,-150.0,0.00014986,2]
[422428126,1778938242000,-230.71482245,0.00014986,2]
[422428128,1778938242000,-500.0,0.00014999,12]
[422428127,1778938242000,-150.0,0.00014986,2]
[422428130,1778938242000,-500.0,0.00014999,13]
[422428132,1778938242000,-463.38310309,0.00014999,15]
[422428133,1778938242000,-500.0,0.00014999,2]
[422428131,1778938242000,-500.0,0.00014999,14]
[422428134,1778938242000,-500.0,0.00014999,2]
[422428135,1778938242000,-500.0,0.00014999,2]
[422428098,1778938242000,-150.0,0.00014756,2]
[422428115,1778938242000,-1274.87378432,0.000149,2]
[422428113,1778938242000,-2008.45337415,0.000149,2]
[422428136,1778938242000,-500.0,0.00014999,2]
[422428111,1778938242000,-1291.79536216,0.000149,2]
[422428093,1778938242000,-160.0,0.000147,2]
[422428094,1778938242000,-1309.727714,0.000147,2]
[422428092,1778938242000,-170.260463,0.000147,2]
[422428091,1778938242000,-165.130231,0.000147,2]
[422428095,1778938242000,-2459.455428,0.000147,2]
[422428089,1778938242000,-161.13355918,0.000147,3]
[422428123,1778938242000,-150.0,0.00014986,2]
[422428096,1778938242000,-1291.79536216,0.0001474,2]
[422428099,1778938242000,-200.0,0.00014764,2]
[422428097,1778938242000,-5079.81744358,0.0001474,2]
[422428100,1778938242000,-2008.45337415,0.00014798,2]
[422428102,1778938242000,-1291.79536216,0.0001482,2]
[422428104,1778938242000,-421.220104,0.00014847,2]
[422428107,1778938242000,-10000.0,0.0001485,2]
[422428108,1778938242000,-200.0,0.0001486,2]
[422428103,1778938242000,-5079.81744358,0.0001482,2]
[422428109,1778938242000,-150.0,0.00014871,2]
[422428105,1778938242000,-465.547939,0.00014847,2]
[422428101,1778938242000,-150.0,0.00014813,2]
[422428106,1778938242000,-500.0,0.00014849,11]
[422428165,1778938243000,-198.14496198,0.00014999,2]
[422428163,1778938243000,-500.0,0.00014999,2]
[422428170,1778938243000,-500.0,0.00014999,2]
[422428159,1778938243000,-403.08694039,0.00014999,2]
[422428160,1778938243000,-500.0,0.00014999,2]
[422428162,1778938243000,-500.0,0.00014999,2]
[422428167,1778938243000,-500.0,0.00014999,2]
[422428175,1778938243000,-500.0,0.00014999,2]
[422428168,1778938243000,-500.0,0.00014999,2]
[422428166,1778938243000,-500.0,0.00014999,2]
[422428169,1778938243000,-500.0,0.00014999,2]
[422428171,1778938243000,-500.0,0.00014999,2]
[422428173,1778938243000,-500.0,0.00014999,2]
[422428183,1778938243000,-500.0,0.00014999,2]
[422428172,1778938243000,-465.15228181,0.00014999,2]
[422428174,1778938243000,-500.0,0.00014999,2]
[422428158,1778938243000,-500.0,0.00014999,2]
[422428164,1778938243000,-500.0,0.00014999,2]
[422428157,1778938243000,-501.56132056,0.00014999,2]
[422428147,1778938243000,-500.0,0.00014999,2]
[422428154,1778938243000,-500.0,0.00014999,2]
[422428178,1778938243000,-500.0,0.00014999,2]
[422428138,1778938243000,-500.0,0.00014999,2]
[422428137,1778938243000,-500.0,0.00014999,2]
[422428139,1778938243000,-500.0,0.00014999,2]
[422428140,1778938243000,-500.0,0.00014999,2]
[422428141,1778938243000,-500.0,0.00014999,2]
[422428143,1778938243000,-500.0,0.00014999,2]
[422428142,1778938243000,-509.28723594,0.00014999,2]
[422428155,1778938243000,-186.64364503,0.00014999,2]
[422428144,1778938243000,-500.0,0.00014999,2]
[422428146,1778938243000,-500.0,0.00014999,2]
[422428148,1778938243000,-500.0,0.00014999,2]
[422428149,1778938243000,-500.0,0.00014999,2]
[422428150,1778938243000,-500.0,0.00014999,2]
[422428152,1778938243000,-500.0,0.00014999,2]
[422428151,1778938243000,-500.0,0.00014999,2]
[422428153,1778938243000,-500.0,0.00014999,2]
[422428156,1778938243000,-500.0,0.00014999,2]
[422428145,1778938243000,-500.0,0.00014999,2]
[422428177,1778938243000,-500.0,0.00014999,2]
[422428198,1778938243000,-500.0,0.00014999,2]
[422428181,1778938243000,-500.0,0.00014999,2]
[422428209,1778938243000,-500.0,0.00014999,2]
[422428200,1778938243000,-500.0,0.00014999,2]
[422428204,1778938243000,-500.0,0.00014999,2]
[422428179,1778938243000,-500.0,0.00014999,2]
[422428211,1778938243000,-500.0,0.00014999,2]
[422428212,1778938243000,-500.0,0.00014999,2]
[422428215,1778938243000,-500.0,0.00014999,2]
[422428214,1778938243000,-500.0,0.00014999,2]
[422428205,1778938243000,-500.0,0.00014999,2]
[422428221,1778938243000,-500.0,0.00014999,2]
[422428216,1778938243000,-500.0,0.00014999,2]
[422428213,1778938243000,-500.0,0.00014999,2]
[422428219,1778938243000,-500.0,0.00014999,2]
[422428220,1778938243000,-500.0,0.00014999,2]
[422428217,1778938243000,-500.0,0.00014999,2]
[422428222,1778938243000,-531.13887723,0.00014999,2]
[422428224,1778938243000,-497451.93124519,0.00015,2]
[422428223,1778938243000,-300.0,0.00014999,2]
[422428218,1778938243000,-500.0,0.00014999,2]
[422428202,1778938243000,-500.0,0.00014999,2]
[422428210,1778938243000,-434.68248138,0.00014999,2]
[422428207,1778938243000,-500.0,0.00014999,2]
[422428180,1778938243000,-500.0,0.00014999,2]
[422428182,1778938243000,-500.0,0.00014999,2]
[422428185,1778938243000,-279.29149,0.00014999,2]
[422428206,1778938243000,-500.0,0.00014999,2]
[422428190,1778938243000,-404.1758266,0.00014999,2]
[422428188,1778938243000,-500.0,0.00014999,2]
[422428189,1778938243000,-500.0,0.00014999,2]
[422428191,1778938243000,-500.0,0.00014999,2]
[422428192,1778938243000,-500.0,0.00014999,2]
[422428187,1778938243000,-500.0,0.00014999,2]
[422428196,1778938243000,-500.0,0.00014999,2]
[422428194,1778938243000,-500.0,0.00014999,2]
[422428197,1778938243000,-500.0,0.00014999,2]
[422428193,1778938243000,-500.0,0.00014999,2]
[422428199,1778938243000,-500.0,0.00014999,2]
[422428201,1778938243000,-500.0,0.00014999,2]
[422428208,1778938243000,-500.0,0.00014999,2]
[422428203,1778938243000,-164.37893862,0.00014999,2]
[422428195,1778938243000,-500.0,0.00014999,2]
[422428228,1778938244000,-1096.13900126,0.00015,2]
[422428230,1778938244000,-32508.88239924,0.00015,2]
[422428232,1778938244000,-632.01375694,0.00015,2]
[422428231,1778938244000,-2095.592,0.00015,2]
[422428233,1778938244000,-1002.10039579,0.00015,2]
[422428229,1778938244000,-9926.99799014,0.00015,2]
[422428235,1778938246000,-2034.65,0.00015,2]
[422428238,1778938270000,161.94,0.00030136,120]
[422428239,1778938306000,1737.907871,0.00023821,120]
[422428241,1778938320000,73.78557075,8.871e-05,2]
[422428242,1778938320000,99.07442925,8.871e-05,2]
[422428244,1778938569000,-4166.66,0.00040274,120]
[422428243,1778938569000,-4166.66,0.00040274,120]
[422428245,1778938569000,-4166.66,0.00040274,120]
[422428247,1778938569000,-4166.66,0.00040274,120]
[422428246,1778938569000,-4166.66,0.00040274,120]
[422428265,1778938570000,-500.0,0.00040274,120]
[422428264,1778938570000,-500.0,0.00040274,120]
[422428266,1778938570000,-500.0,0.00040274,120]
[422428263,1778938570000,-500.0,0.00040274,120]
[422428262,1778938570000,-500.0,0.00040274,120]
[422428261,1778938570000,-225.52924412,0.00040274,120]
[422428260,1778938570000,-500.0,0.00040274,10]
[422428258,1778938570000,-292.9611469,0.00040274,30]
[422428257,1778938570000,-4166.82,0.00040274,120]
[422428255,1778938570000,-4166.66,0.00040274,120]
[422428256,1778938570000,-4166.66,0.00040274,120]
[422428254,1778938570000,-4166.66,0.00040274,120]
[422428253,1778938570000,-4166.66,0.00040274,120]
[422428252,1778938570000,-4166.66,0.00040274,120]
[422428251,1778938570000,-4166.66,0.00040274,120]
[422428250,1778938570000,-4166.66,0.00040274,120]
[422428249,1778938570000,-4166.66,0.00040274,120]
[422428248,1778938570000,-4166.66,0.00040274,120]
[422428267,1778938570000,-601.81581077,0.00040274,120]
[422428269,1778938570000,-450.57661916,0.00040274,120]
[422428259,1778938570000,-240.867946,0.00040274,120]
[422428268,1778938570000,-10897.54289332,0.00040274,120]
[422428288,1778938570000,-500.0,0.00040274,120]
[422428270,1778938570000,-500.0,0.00040274,120]
[422428289,1778938570000,-500.0,0.00040274,120]
[422428284,1778938570000,-500.0,0.00040274,120]
[422428286,1778938570000,-500.0,0.00040274,120]
[422428287,1778938570000,-500.0,0.00040274,120]
[422428285,1778938570000,-500.0,0.00040274,120]
[422428283,1778938570000,-500.0,0.00040274,120]
[422428280,1778938570000,-500.0,0.00040274,120]
[422428281,1778938570000,-500.0,0.00040274,120]
[422428282,1778938570000,-500.0,0.00040274,120]
[422428278,1778938570000,-500.0,0.00040274,120]
[422428272,1778938570000,-500.0,0.00040274,120]
[422428279,1778938570000,-500.0,0.00040274,120]
[422428271,1778938570000,-500.0,0.00040274,120]
[422428273,1778938570000,-72853.6925453,0.00040274,120]
[422428274,1778938570000,-20076.84947024,0.00040274,120]
[422428276,1778938570000,-500.0,0.00040274,120]
[422428277,1778938570000,-500.0,0.00040274,120]
[422428275,1778938570000,-15275.68917334,0.00040274,120]
[422428301,1778938571000,-1314.02,0.00040274,120]
[422428308,1778938571000,-1314.02,0.00040274,120]
[422428306,1778938571000,-1314.02,0.00040274,120]
[422428304,1778938571000,-1314.02,0.00040274,120]
[422428310,1778938571000,-1314.02,0.00040274,120]
[422428302,1778938571000,-1314.02,0.00040274,120]
[422428303,1778938571000,-1314.02,0.00040274,120]
[422428300,1778938571000,-1314.02,0.00040274,120]
[422428291,1778938571000,-500.0,0.00040274,120]
[422428298,1778938571000,-1314.02,0.00040274,120]
[422428297,1778938571000,-1314.02,0.00040274,120]
[422428295,1778938571000,-480.0,0.00040274,120]
[422428294,1778938571000,-480.0,0.00040274,120]
[422428293,1778938571000,-480.0,0.00040274,120]
[422428296,1778938571000,-480.0,0.00040274,120]
[422428292,1778938571000,-547.77700067,0.00040274,120]
[422428290,1778938571000,-500.0,0.00040274,120]
[422428307,1778938571000,-1314.02,0.00040274,120]
[422428299,1778938571000,-1314.02,0.00040274,120]
[422428309,1778938571000,-1314.02,0.00040274,120]
[422428305,1778938571000,-1314.02,0.00040274,120]
[422428311,1778938571000,-1314.02,0.00040274,120]
[422428312,1778938571000,-1314.02,0.00040274,120]
[422428331,1778938571000,-212.98043872,0.00040274,120]
[422428330,1778938571000,-500.0,0.00040274,120]
[422428328,1778938571000,-19184.01416953,0.00040274,60]
[422428329,1778938571000,-313.0,0.00040274,120]
[422428324,1778938571000,-54096.2,0.00040274,120]
[422428326,1778938571000,-42969.41711853,0.00040274,120]
[422428327,1778938571000,-500.0,0.00040274,120]
[422428325,1778938571000,-36064.1,0.00040274,30]
[422428323,1778938571000,-292.21647418,0.00040274,120]
[422428321,1778938571000,-500.0,0.00040274,120]
[422428322,1778938571000,-500.0,0.00040274,120]
[422428319,1778938571000,-1314.02,0.00040274,120]
[422428318,1778938571000,-1314.02,0.00040274,120]
[422428317,1778938571000,-1314.02,0.00040274,120]
[422428316,1778938571000,-1314.02,0.00040274,120]
[422428315,1778938571000,-1314.02,0.00040274,120]
[422428314,1778938571000,-1314.02,0.00040274,120]
[422428313,1778938571000,-1314.02,0.00040274,120]
[422428320,1778938571000,-1314.12447923,0.00040274,120]
[422428332,1778938572000,7956.6653577,0.00040274,10]
[422428334,1778938572000,62949.0,0.00040274,10]
[422428335,1778938572000,150.0,0.00040274,120]
[422428336,1778938572000,150.0,0.00040274,120]
[422428333,1778938572000,1913.0,0.00040274,10]
[422428337,1778938572000,150.0,0.00040274,120]
[422428339,1778938577000,2737.0,0.00040274,10]
[422428338,1778938577000,638.0,0.00040274,10]
[422428340,1778938580000,150.0,0.00040274,120]
[422428341,1778938581000,500.0,0.00040274,120]
[422428344,1778938582000,500.0,0.00040274,120]
[422428342,1778938582000,500.0,0.00040274,120]
[422428357,1778938625000,-755.775415,0.00022553,14]
[422428356,1778938625000,-300.0,0.000201,10]
[422428354,1778938625000,-153.85193961,0.0002,20]
[422428355,1778938625000,-200.0,0.0002,10]
[422428353,1778938625000,-8002.0,0.0002,10]
[422428348,1778938625000,-156.47428246,0.00016438,30]
[422428352,1778938625000,-156.47428246,0.00016438,30]
[422428350,1778938625000,-156.47428246,0.00016438,30]
[422428349,1778938625000,-156.47428246,0.00016438,30]
[422428347,1778938625000,-3145.20959537,0.00015,14]
[422428351,1778938625000,-156.47428246,0.00016438,30]
[422428358,1778938625000,-225.670009,0.00022779,14]
[422428366,1778938625000,-508.67,0.00025234,30]
[422428359,1778938625000,-363.0,0.00023,30]
[422428360,1778938625000,-160.0,0.00023821,14]
[422428370,1778938625000,-231.325621,0.00027394,14]
[422428369,1778938625000,-300.0,0.00027306,10]
[422428367,1778938625000,-508.44,0.00025234,30]
[422428368,1778938625000,-156.54608074,0.00027123,20]
[422428371,1778938625000,-1952.56092811,0.00027397,30]
[422428363,1778938625000,-262.002144,0.00024701,14]
[422428364,1778938625000,-444.856963,0.00025012,14]
[422428361,1778938625000,-326.22844,0.00023821,14]
[422428362,1778938625000,-492.45688,0.00023821,14]
[422428365,1778938625000,-508.79,0.00025234,30]
[422428383,1778938626000,-678.67,0.00028693,30]
[422428388,1778938626000,-289.73,0.00028788,30]
[422428389,1778938626000,-338.96,0.00028788,30]
[422428386,1778938626000,-339.11,0.00028788,30]
[422428387,1778938626000,-1962.81,0.00028788,30]
[422428384,1778938626000,-296.58,0.00028788,30]
[422428385,1778938626000,-620.26,0.00028788,30]
[422428382,1778938626000,-1973.51,0.00028693,30]
[422428380,1778938626000,-289.73,0.00028693,30]
[422428374,1778938626000,-285.79420134,0.00028,60]
[422428378,1778938626000,-339.11,0.00028693,30]
[422428379,1778938626000,-1962.81,0.00028693,30]
[422428376,1778938626000,-296.58,0.00028693,30]
[422428377,1778938626000,-620.26,0.00028693,30]
[422428375,1778938626000,-1952.56092811,0.00028311,30]
[422428373,1778938626000,-11845.99,0.00027397,10]
[422428372,1778938626000,-14215.18,0.00027397,10]
[422428391,1778938626000,-678.67,0.00028788,30]
[422428381,1778938626000,-338.96,0.00028693,30]
[422428390,1778938626000,-1973.51,0.00028788,30]
[422428396,1778938626000,-289.73,0.00028883,30]
[422428392,1778938626000,-296.58,0.00028883,30]
[422428411,1778938626000,-650.0,0.00029074,30]
[422428412,1778938626000,-650.0,0.00029074,30]
[422428409,1778938626000,-650.0,0.00029074,30]
[422428410,1778938626000,-650.0,0.00029074,30]
[422428407,1778938626000,-678.67,0.00028979,30]
[422428408,1778938626000,-219.0,0.00029074,30]
[422428406,1778938626000,-1973.51,0.00028979,30]
[422428405,1778938626000,-338.96,0.00028979,30]
[422428404,1778938626000,-289.73,0.00028979,30]
[422428393,1778938626000,-620.26,0.00028883,30]
[422428401,1778938626000,-620.26,0.00028979,30]
[422428402,1778938626000,-339.11,0.00028979,30]
[422428400,1778938626000,-296.58,0.00028979,30]
[422428399,1778938626000,-678.67,0.00028883,30]
[422428397,1778938626000,-338.96,0.00028883,30]
[422428413,1778938626000,-650.0,0.00029074,30]
[422428398,1778938626000,-1973.51,0.00028883,30]
[422428395,1778938626000,-1962.81,0.00028883,30]
[422428394,1778938626000,-339.11,0.00028883,30]
[422428403,1778938626000,-1962.81,0.00028979,30]
[422428425,1778938627000,-339.11,0.00029169,30]
[422428426,1778938627000,-1962.81,0.00029169,30]
[422428427,1778938627000,-289.73,0.00029169,30]
[422428430,1778938627000,-678.67,0.00029169,30]
[422428429,1778938627000,-1973.51,0.00029169,30]